{"text_format":"2","workbook":"xlsx","n_sheets":1,"sheets":["Auslage"],"not_rendered":{"charts":0,"images":1,"macros":0,"external_links":0,"defined_names":0,"comments":0,"pivot_tables":0},"unopened":[],"bounds":{"document_bytes":16777216,"sheet_cells":100000,"run_cost":"one","rows_first":2000,"rows_last":500,"rows_between":2000,"halvings":0,"cell_chars":16384,"cell_head_chars":4096},"cells_cut":0,"cells_raw":0,"read":"whole","date_system":"1900"}

{"sheet":"Auslage","index":0,"n_rows":265,"n_cols":8,"rows_kept":265,"cut":false,"hidden":false,"merged":[[236,0,236,7],[1,0,1,7],[3,0,3,2],[258,4,258,5],[255,0,255,7],[192,0,192,7],[205,0,205,7],[214,0,214,7],[235,0,235,7],[33,0,33,7],[45,0,45,7],[150,0,150,7],[163,0,163,7],[174,0,174,7],[3,4,3,5],[32,1,32,6],[7,1,7,2],[5,1,5,2],[26,0,26,2],[28,1,28,2],[30,1,30,2],[9,0,9,2],[17,1,22,6],[23,1,24,6],[13,1,13,2],[11,1,11,2]]}
[]
["Bestellung"]
[]
["Ihre Daten:"]
[]
[null,"Name:"]
[{"$nulls":6},{"$f":"TODAY()","v":44862}]
[null,"Vorname:",{"$nulls":4},{"$f":"RAND()*100","v":28.516331406246231}]
[{"$nulls":5},{"$f":"IF(D6=\"Vorname\",55,RAND()*1000000)","v":792627.70569343795}]
["Straße & Hausnummer:"]
[{"$nulls":6},{"$f":"IF(D6=\"Vorname\",,MID(D6,1,1))","v":""}]
[null,"PLZ:",{"$nulls":4},{"$f":"IF(D8=\"Nachname\",,MID(D8,1,1))","v":""}]
[]
[null,"Ort:"]
[]
[null,null,"Datum:"]
[]
[null,"Nach Ihrer Vorbestllung erhalten Sie von uns eine Rechnung. Die verbindliche Bestellung kommt erst mit Überweisung der vollständigen Rechnungssumme per Vorkasse zustande. Die Abgabe der pyrotechnischen Gegenstände  erfolgt nur nach Vorlage des Personalausweises und bei Bedarf (Feuerwerk Kategorie F3 oder F4) notwendiger Zusatzpapiere."]
[]
[]
[]
[]
[]
[null,"Bitte beachten Sie, dass wir umgezogen sind! Die Abholung ist nun nur noch in 77933 Lahr möglich."]
[]
[]
["Abholungsterminwunsch:"]
[]
[null,"Datum der Abholung:"]
[]
[null,"Uhrzeit der Abholung:"]
[]
[null,"Gerne beschaffen wir für Sie auf Wunsch weitere, nicht hier aufgeführte, Artikel aus dem Sortiment von Blackboxx oder Zink. Hierzu füllen Sie bitte die Liste am Ende des Dokumentes aus. Wir setzen uns dann mit Ihnen in Verbindung und teilen Ihnen die Preise der Effekte mit.\n\nVielen Dank\n\n\n- Das Team von MK Eventdesign -"]
["Anzündmittel"]
[]
["Nr.","Anzahl","Hersteller","Artikel","NEM","Kat.","Preis","Summe"]
[]
[1,null,"Blackboxx","Visco grün, ca.30s/m, 10m",null,"P1",11.5,{"$f":"G38*B38","v":0}]
[2,null,"Wano","Anzündlitze gelb, 18-28 sek/Meter",null,"P1",12,0]
[3,null,"Wano","Anzündlitze rot, 8-12 sek/Meter",null,"P1",12,0]
[4,null,"Blackboxx","Tapematch","20g","P1",13,0]
[5,null,"Blackboxx","Brückenanzünder 35cm, 200 Stk.",null,"P1",90,0]
[6,null,"Blackboxx","Brückenanzünder 100cm, 50 Stk.",null,"P1",40,0]
[7,null,"Blackboxx","Brückenanzünder 500 cm, 25 Stk.",null,"P1",48,0]
[null,{"$f":"SUM(Tabelle1[[#All],[Spalte2]])","v":0},{"$nulls":5},{"$f":"SUM(H38:H44)","v":0}]
["Batteriefeuerwerk"]
[]
["Nr.","Anzahl","Hersteller","Artikel","NEM","Kat.","Preis","Summe"]
[]
[11,null,"Blackboxx","Barbarossa","463g","F2",35,{"$f":"G50*B50","v":0}]
[null,null,null,"Wunderschöne, gigantische Buketts aus Rotflimmer und blauen Sternen mit einem Zentrum aus Titangoldpalmen, sowie Grünflimmer mit blauen Sternen und Zentrum aus Titangoldpalmen. Alle Effekte mit Goldflimmer-Schweif aufsteigend und lautem Zerlegerknall",null,null,"VIDEO"]
[12,null,"Blackboxx","Bison","819g","F3",110,{"$f":"G52*B52","v":0}]
[null,null,null,"Großkalibrige Bombetten-Batterie mit Abschuss im 3er Fächer von Goldschweifkometen zu goldenen Cycas-Palmen mit Spitzen in Rot und Purpur, immer in Kombination mit Silberglitter und blauen Sternen und im Farbwechsel geschossen",null,null,"VIDEO"]
[13,null,"Blackboxx","Diva Liga","498g",null,50,{"$f":"G54*B54","v":0}]
[null,null,null,"Performance Fächer-Batterie aus Goldflimmer-Chrysanthemen mit Purpur Dahlie und Goldflimmerschweifaufstieg, geschossen im Zick-Zack Fächer, gefolgt von einem Fächer aus Goldflimmerschweifkometen mit Verwandlung zu blauen Päonien in einer Goldflimmerwolke, danach wieder ein Zick-Zack Abschuss von Crossette-Kometen in Gelb und Purpur. Den Abschluss bildet ein Fächer aus großkalibrigen Goldpalmenbuketts in blauem Sternzentrum, kombiniert mit Titangold-Feuertöpfen und blauen Kometen.",null,null,"VIDEO"]
[14,null,"Blackboxx","Blender","490g","F2",45,0]
[null,null,null,"7er Fächer aus fülligen Feuertöpfen in grellem Silberflimmer, durchzogen von roten Kometen, die sich nach Aufstieg in große, lautlose Silberblinker-Wasserfälle verwandeln",null,null,"VIDEO"]
[15,null,"Blackboxx","Bombuster","463g","F2",39,{"$f":"G58*B58","v":0}]
[null,null,null,"Goldflimmerschweifkometen mit Verwandlung zu goldenen Corolla-Palmen umhüllt von farblich wechselnden Sternenbuketts in Blau, Rot, Purpur und Orange.",null,null,"VIDEO"]
[16,null,"Blackboxx","Boosterblume","142g","F2",9,0]
[null,null,null,"Silberne Schweifkometen mit Verwandlung zu Buketts aus silbernen Crackling-Chrysanthemen",null,null,"VIDEO"]
[17,null,"Blackboxx","Deja Vu","181g","F2",15,0]
[null,null,null,"Große Silberblinkerbuketts, durchzogen von tiefblauen Sternen und kräftige Rotblinkerbuketts mit tiefblauen Sternen in abwechselnder Schussfolge und immer mit kräftigem Blitzzerlegerknall.",null,null,"VIDEO"]
[18,null,"Blackboxx","Dock 12","132g","F2",11,0]
[null,null,null,"Gold flimmernde Brokatkronenbuketts mit roten Spitzen und Goldschweif aufsteigend"]
[19,null,"Blackboxx","Eissphinx","112g","F2",11,0]
[null,null,null,"Riesige, Gold flimmernde Brokatkronen, kombiniert mit eiskalten, silbernen Blinksternen",null,null,"VIDEO"]
[20,null,"Blackboxx","Elysis","434g","F2",50,0]
[null,null,null,"1.Silberne Knisterkometen zu roten Blinksternen in einem Schwarm aus Silberfischen - geschossen im Z-Fächer.\n2.Golden Palmschweifkometen zu Goldwasserfällen mit blauer Spitze, kombiniert mit rotem Blütenregen in blauem Sternenbukett - im Z-Fächer.\n3.Goldflimmerschweifkometen zu Brokatwasserfällen mit Purpur Spitze, kombiniert mit grünem Blütenregen in blauem Sternenbukett - im 9er Fächer.\n4.Rote Kometen und Brokatschweif zu goldenen Crackling-Blüten, kombiniert mit rotem Blütenregen in blauem Sternenbukett - im 9er Fächer.",null,null,"VIDEO"]
[21,null,"Blackboxx","Epsilon","227g","F2",19,0]
[null,null,null,"Große Goldflimmer-Feuertöpfe mit roten Sternen in der unteren Ebene, darüber rote Dahlien-Buketts mit Brokatpalmen-Zentrum",null,null,"VIDEO"]
[22,null,"Blackboxx","Erlkönig","486g","F2",38,0]
[null,null,null,"Palmenwedel in Rotflimmer und Goldflimmer, kombiniert mit Sternenbuketts in Blau mit Grünflimmer oder Blau mit Knistersternen. Der Aufstieg wird immer begleitet von Flimmerschweifkometen in Rot oder Gold.",null,null,"VIDEO"]
[23,null,"Blackboxx","Erzengel","486g","F2",45,0]
[null,null,null,"Große Titangoldweiden, kombiniert mit kräftigen Rotblinkern, sowie Titangoldweiden, kombiniert mit blauen Päonien. Die Effekte werden jeweils abwechselnd im 5er Fächer geschossen, immer mit Silberblinker-Feuertöpfen in der unteren Ebene ",null,null,"VIDEO"]
[24,null,"Blackboxx","Feuer und Eis","329g","F2",27,0]
[null,null,null,"Knallrote Kometen zerlegen nach Aufstieg in riesige Buketts aus lang stehenden, silbernen Blinksternen in Kombination mit leuchtend roten Dahlien",null,null,"VIDEO"]
[25,null,"Blackboxx","Flitz Blitz","227g","F2",16.5,0]
[null,null,null,"Riesige Brokat-Feuertöpfe mit blauen Spitzen in der unteren Ebene, darüber große, silberne Pusteblumen-Buketts mit rotem Komet aufsteigend",null,null,"VIDEO"]
[26,null,"Blackboxx","Gigantika","296g","F2",34,0]
[null,null,null,"Fächerabschuss von jeweils 4 fetten, Schweifkometen in Goldbrokat, Titangold oder Silberflimmer mit Verwandlung zu Königsbrokatkronen mit Rotflimmer, blauer Päonie mit Grünflimmer und Titanpalmenzentrum, Silberblinker mit knallroter Dahlie",null,null,"VIDEO"]
[27,null,"Blackboxx","Glamour","341g","F2",27.5,0]
[null,null,null,"Glamouröse Schönheit aus raffinierten Farb- und Blinkstern-Kombinationen: 1. Sternenbuketts in Violett mit grünen Blinksternen; 2.Goldflimmersterne mit grünen Blinksternen; 3.Rotflimmer mit silbernen Blinksternen; 4.Purpur Dahlie mit silbernen Blinksternen; 5.gelbe Dahlie mit Rotflimmersternen - alle Effekte mit farbigem Kometenaufstieg.",null,null,"VIDEO"]
[28,null,"Blackboxx","Gloria Coloria","341g","F2",27.5,0]
[null,null,null,"Ein farbenprächtiges Potpourri aus Sternenbuketts in den Farbkombinationen 1.Purpur-Grün-Gelb, 2.Rot-Blau-Gelb, 3.Blau-Grün-Purpur, im Anschluss gefolgt von 4.neon grüner Dahlie mit Purpur Sternen und 5.leuchtend roter Dahlie mit blauen Sternen - alle Effekte mit buntem Kometenaufstieg",null,null,"VIDEO"]
[29,null,"Blackboxx","Heyloo","227g","F2",16.5,0]
[null,null,null,"Riesige Brokat-Feuertöpfe mit blauen Spitzen in der unteren Ebene, darüber große Goldcracklingpalmen mit langem Rotflimmerschweif aufsteigend",null,null,"VIDEO"]
[30,null,"Blackboxx","Knallbär","136g","F2",10.5,0]
[null,null,null,"Rotblinker in tiefblauen Sternenbuketts, gefolgt von Grünblinker mit Dahlien in kräftigen Purpur und Silberschweifkometen zu Silberblinker mit roten Dahlienbuketts",null,null,"VIDEO"]
[31,null,"Blackboxx","Lars vom Mars","463g","F2",37.5,{"$f":"G90*B90","v":0}]
[null,null,null,"Filigrane Goldflimmer-Palmen mit wechselnden Sternenbuketts in Rotblinker und Blau, untermalt von fetten Goldschweifkometen.",null,null,"VIDEO"]
[32,null,"Blackboxx","Lava Rain","490g","F2",39,0]
[null,null,null,"V-Fächer aus Goldschweifkometen mit Verwandlung zu Titangold-Wasserfällen und roten Crossette-Sternen",null,null,"VIDEO"]
[33,null,"Blackboxx","Light Night","329g","F2",27.5,{"$f":"G94*B94","v":0}]
[null,null,null,"Multi-Effekt Batterie aus silbernen Knisterkometen mit Verwandlung zu silbernen Knisterpalmen in blauen Sternenbuketts, gefolgt von Silberschweifkometen mit Verwandlung zu silbernen Kokosnusspalmen in Goldblinkerwolke, Purpur Kometen mit Verwandlung zu Weißblinker-Weiden mit Purpur Sternen, goldene Kokosnusspalmen mit Rotblinker und gelbem Kometenaufstieg und Silberschweifkometen zu Silbercrackling-Weiden mit bunten Spitzen",null,null,"VIDEO"]
[34,null,"Blackboxx","Manga","476g","F2",63,0]
[null,null,null,"Ein farblich perfekt aufeinander abgestimmtes Crossette-Potpourrie in Kombination mit fallendem Blütenregen in abwechselnden Farben, blauen Sternenbuketts und silbern blinkenden Wasserfällen - alles im Z-Fächer geschossen",null,null,"VIDEO"]
[35,null,"Blackboxx","Mythos","132g","F2",11,0]
[null,null,null,"Prachtvolle Brokat-Schweifkometen zerlegen nach Aufstieg mit lautem Knall zu Mega gigantischen Brokatkronen-Buketts",null,null,"VIDEO"]
[36,null,"Blackboxx","Nexus","182g","F2",11,0]
[null,null,null,"Silberne Feuersäulen aus lautstarkem Crackling, darüber prachtvolle Buketts aus knisternden Cracklingwolken",null,null,"VIDEO"]
[37,null,"Blackboxx","Nymphis","227g","F2",19,0]
[null,null,null,"Gigantische Titangold-Feuertöpfe in der unteren Ebene, darüber Goldflimmerpalmen mit Purpur Sternen in einer Wolke aus Goldflimmer",null,null,"VIDEO"]
[38,null,"Blackboxx","Paradoxon","253g","F2",19.5,{"$f":"G104*B104","v":0}]
[null,null,null,"Farbenprächtige Leuchtstern-Buketts, abwechselnd in Rot und Violett, immer in Kombination mit kräftigen Brokatpalmen, werden begleitet von aufsteigenden Leuchtkometen in Rot und Violett.",null,null,"VIDEO"]
[39,null,"Blackboxx","Plan B","498g","F2",35.5,0]
[null,null,null,"Rubinrote Kometen zerlegen zu einem gigantischen Feld aus hunderten, schönen, Bronzefarbenen Cracklingblumen, wobei Feuertöpfe aus goldenen Poppingsternen die untere Ebene begleitend ausfüllen",null,null,"VIDEO"]
[40,null,"Blackboxx","Präladium","253g","F2",19.899999999999999,0]
[null,null,null,"Fette Brokatschweifkometen und Titangold-Palmen mit Verwandlung zu blauen Spitzen in Kombination mit kräftig leuchtenden Dahliensternen in Purpur",null,null,"VIDEO"]
[41,null,"Blackboxx","Rápido","498g","F2",37.5,0]
[null,null,null,"Brokatschweifkometen mit Verwandlung zu Brokatkronen mit Dahlien in Rot-Blau, Grün-Purpur und Gelb-Blau, immer begleitet von silbernen Crackling-Wolken, gefolgt von einem rapiden Abschuss aus blauen Feuertöpfen, Brokatschweifkometen und Brokatkronen mit Purpur Dahliensternen in Kombination mit blauen Buketts und rotem Sternenregen",null,null,"VIDEO"]
[42,null,"Blackboxx","Rokoko","303g","F2",21,0]
[null,null,null,"Titangold-Palmen mit Verwandlung zu silbernen Spitzen, darunter Feuertöpfe mit Verwandlung von Goldbrokat zu Silber, durchzogen von Goldflimmer-Schweifkometen.",null,null,"VIDEO"]
[43,null,"Blackboxx","Roter Drache","268g","F2",19,0]
[null,null,null,"Feuertöpfe in Rot- und Silberflimmer, darüber Buketts aus sanft knisternden Silberpalmen, kombiniert mit Rotblinker und Silberblinker",null,null,"VIDEO"]
[44,null,"Blackboxx","Schlossgeist","207g","F2",14.5,0]
[null,null,null,"Simultanabschuss aus gigantischen Goldflimmerkronen, durchzogen von Silberschweif-Heulkometen mit 3-facher Tonverwandlung",null,null,"VIDEO"]
[45,null,"Blackboxx","Schnelle Welle","473g","F2",60,0]
[null,null,null,"Farblich perfekt aufeinander abgestimmte Crossettestern-Kometen in Blau, Rot und Gelb, werden im rasanten Zick-Zack Fächer abgeschossen. Den Abschluss bildet ein Fächerabschuss aus 9 Crossettesternen gleichzeitig\n\n\n",null,null,"VIDEO"]
[46,null,"Blackboxx","Supra","491g","F2",45,{"$f":"G120*B120","v":0}]
[null,null,null,"Kokosnusspalmen aus Titangold, umhüllt von blauen Sternen werden begleitet von Titangold-Feuertöpfen und kobaltblauen Kometen. Geschossen im 6er Fächer.",null,null,"VIDEO"]
[47,null,"Blackboxx","Süßes Gift","253g","F2",19.5,0]
[null,null,null,"Süßes Violett trifft auf giftiges Grün - eine Kombination aus Dahliensternen in knalligem Grün und leuchtendem Violett, umhüllt von einer Wolke aus berauschendem Goldflimmer und immer mit Kometenaufstieg in Violett",null,null,"VIDEO"]
[48,null,"Blackboxx","Spectris","355g","F2",33,{"$f":"G124*B124","v":0}]
[null,null,null,"Fächerabschuss aus Silberschweifkometen mit Verwandlung zu silbernen Kokosnusspalmen, umhüllt von Sternenbuketts in Rotblinker, Goldblinker, Blau und Crackling. In der unteren Ebene wird das Spektakel von verschiedenen Feuertopf-Kombinationen begleitet.",null,null,"VIDEO"]
[49,null,"Blackboxx","Symphonie","142g","F2",10.5,0]
[null,null,null,"Sternenbuketts in Purpur kombiniert mit leuchtendem Grün, in einer Wolke aus Goldstaubblinkern. Alle Effekte steigen mit Goldflimmerschweif auf.",null,null,"VIDEO"]
[50,null,"Blackboxx","Titanica","463g","F2",34.5,0]
[null,null,null,"Silberne Kokosnusspalmen, umgeben von Sternenbuketts in Blau, Orange, Rot, Lemon-Grün und Violett. Immer mit kräftigem Silberschweif aufsteigend und in abwechselnder Farbfolge",null,null,"VIDEO"]
[51,null,"Blackboxx","Ultraviolett","253g","F2",19.5,0]
[null,null,null,"Rote Funkenblüten mit Verwandlung zu einer Goldstaubwolke, durchzogen von einer violetten Dahlie und mit Kometenaufstieg in Violett.",null,null,"VIDEO"]
[52,null,"Blackboxx","Vaporizer","25g","F2",6.5,{"$f":"G132*B132","v":0}]
[null,null,null,"Großer, zylindrischer Kanonenschlag mit extrem lautem Knall, 10er Schachtel",null,null,"VIDEO"]
[53,null,"Blackboxx","Venom","241g","F2",16.5,0]
[null,null,null,"Goldene Cycas-Palmen mit roten und blauen Spitzen und langem Brokatschweif aufsteigend",null,null,"VIDEO"]
[54,null,"Blackboxx","Violett Fantasy","241g","F2",19,0]
[null,null,null,"Goldflimmerpalmen, umgeben von einem Bukett aus Goldflimmer und violetten Sternen mit Komet in Violett aufsteigend",null,null,"VIDEO"]
[55,null,"Blackboxx","Virus","241g","F2",19,0]
[null,null,null,"Gigantische, lang ausbreitende Palmen-wedel aus glitzernden Goldfunkenblüten mit Cracklingspitzen, hintermalt von Titangoldweiden mit Goldblinkerzentrum und blauem Kometenaufstieg",null,null,"VIDEO"]
[56,null,"Blackboxx","Vogelschreck","250g","F2",7.5,0]
[null,null,null,"Extrem lautstarke Titansalut-Bombetten\n\n\n"]
[57,null,"Blackboxx","Wolke 7","486g","F2",37.5,0]
[null,null,null,"Gold flimmernde Brokatkronen-Buketts mit farbigen Spitzen in kräftig leuchtendem Rot, Blau, Grün, Gelb, oder Purpur werden begleitet von einem bunten Kometenaufstieg",null,null,"VIDEO"]
[58,null,"Blackboxx","Xtrem","486g","F2",54,0]
[null,null,null,"X-Fächer aus kräftigen, roten Kometen mit Verwandlung zu tief fallenden, Silber blinkenden Wasserfällen ",null,null,"VIDEO"]
[59,null,"Blackboxx","Zorn","355g","F2",33.5,0]
[null,null,null,"Großer, gefächerter Poppingstern-Feuertopf in Silber, verteilt auf 2 Etagen. Darüber tiefblaue Päonien mit Zentrum aus Silberflimmerweiden. Der Abschuss erfolgt immer im 4er Fächer",null,null,"VIDEO"]
[60,null,"Blackboxx","Zwielicht","329g","F2",27,{"$f":"G148*B148","v":0}]
[null,null,null,"Große Titangoldpalmen mit Verwandlung zu farbigen Spitzen in Rot, Blau, Grün und Purpur.",null,null,"VIDEO"]
[null,{"$f":"SUM(Tabelle2[[#All],[Spalte2]])","v":0},{"$nulls":5},{"$f":"SUM(Tabelle2[[#All],[Spalte8]])","v":0}]
["Batterieverbund"]
[]
["Nr.","Anzahl","Hersteller","Artikel","NEM","Kat.","Preis","Summe"]
[" "," 2"," 3"," 4"," 5"," 6"," 7"," 8"]
[61,null,"Blackboxx","Pyrospektakel Level 1","961g","F2",95,{"$f":"Tabelle3[[#This Row],[ 7]]*Tabelle3[[#This Row],[ 2]]","v":0}]
[{"$nulls":6},"VIDEO"]
[{"$f":"A155+1","v":62},null,"Blackboxx","Pyrospektakel Level 4","1379g","F2",150,{"$f":"Tabelle3[[#This Row],[ 7]]*Tabelle3[[#This Row],[ 2]]","v":0}]
[{"$nulls":6},"VIDEO"]
[{"$f":"A157+1","v":63},null,"Blackboxx","Pyrospektakel Level 6","1731g","F2",180,{"$f":"Tabelle3[[#This Row],[ 7]]*Tabelle3[[#This Row],[ 2]]","v":0}]
[{"$nulls":6},"VIDEO"]
[{"$f":"A159+1","v":64},null,"Blackboxx","Pyrospektakel Level 7","1846g","F2",200,{"$f":"Tabelle3[[#This Row],[ 7]]*Tabelle3[[#This Row],[ 2]]","v":0}]
[{"$nulls":6},"VIDEO"]
[null,{"$f":"SUM(Tabelle3[[ 2]])","v":0},{"$nulls":5},{"$f":"SUM(H155:H162)","v":0}]
["Raketen"]
[]
["Nr.","Anzahl","Hersteller","Artikel","NEM","Kat.","Preis","Summe"]
[]
[65,null,"Blackboxx","Bad Smiley","85g","F2",17.5,{"$f":"Tabelle4[[#This Row],[ 3]]*Tabelle4[[#This Row],[ 8]]","v":0}]
[{"$f":"A168+1","v":66},null,"Blackboxx","Goldjungs","128g","F2",19.5,{"$f":"Tabelle4[[#This Row],[ 3]]*Tabelle4[[#This Row],[ 8]]","v":0}]
[66,null,"Blackboxx","Big Set",null,"F2",39,{"$f":"Tabelle4[[#This Row],[ 3]]*Tabelle4[[#This Row],[ 8]]","v":0}]
[67,null,"Blackboxx","Bombenraketen",null,"F2",26,{"$f":"Tabelle4[[#This Row],[ 3]]*Tabelle4[[#This Row],[ 8]]","v":0}]
[67,null,"Blackboxx","Best of",null,"F2",33,{"$f":"Tabelle4[[#This Row],[ 3]]*Tabelle4[[#This Row],[ 8]]","v":0}]
[68,null,"Blackboxx","Micro Rockets",null,"F2",3,{"$f":"Tabelle4[[#This Row],[ 3]]*Tabelle4[[#This Row],[ 8]]","v":0}]
[null,{"$f":"SUM(Tabelle4[[#All],[ 8]])","v":0},{"$nulls":5},{"$f":"SUM(Tabelle4[[ 2]])","v":0}]
["Bengalische Effekte & Leuchtfeuerwerk"]
[]
["Nr.","Anzahl","Hersteller","Artikel","NEM","Kat.","Preis","Summe"]
[]
[69,null,"Blackboxx","Bengaltopf XXL Blau","102g","T1",4.5,{"$f":"Tabelle5[[#This Row],[ 7]]*Tabelle5[[#This Row],[ 2]]","v":0}]
[{"$f":"A179+1","v":70},null,"Blackboxx","Bengaltopf XXL Gelb","72g","T1",4.5,{"$f":"Tabelle5[[#This Row],[ 7]]*Tabelle5[[#This Row],[ 2]]","v":0}]
[71,null,"Blackboxx","Bengaltopf XXL Grün","97g","T1",4.5,{"$f":"Tabelle5[[#This Row],[ 7]]*Tabelle5[[#This Row],[ 2]]","v":0}]
[{"$f":"A181+1","v":72},null,"Blackboxx","Bengaltopf XXL Purpur","67g","T1",4.5,{"$f":"Tabelle5[[#This Row],[ 7]]*Tabelle5[[#This Row],[ 2]]","v":0}]
[73,null,"Blackboxx","Bengaltopf XXL Rot","80g","T1",4.5,{"$f":"Tabelle5[[#This Row],[ 7]]*Tabelle5[[#This Row],[ 2]]","v":0}]
[{"$f":"A183+1","v":74},null,"Blackboxx","Ultralux Grün","175g","T1",6,{"$f":"Tabelle5[[#This Row],[ 7]]*Tabelle5[[#This Row],[ 2]]","v":0}]
[75,null,"Blackboxx","Ultralux Gelb","175g","T1",6,{"$f":"Tabelle5[[#This Row],[ 7]]*Tabelle5[[#This Row],[ 2]]","v":0}]
[{"$f":"A185+1","v":76},null,"Blackboxx","Figurenlicht rot (Stück)","8g","T1",12.5,{"$f":"Tabelle5[[#This Row],[ 7]]*Tabelle5[[#This Row],[ 2]]","v":0}]
[77,null,"Blackboxx","Figurenlicht grün (Stück)","8g","T1",12.5,{"$f":"Tabelle5[[#This Row],[ 7]]*Tabelle5[[#This Row],[ 2]]","v":0}]
[{"$f":"A187+1","v":78},null,"Blackboxx","Figurenlicht gelb (Stück)","8g","T1",12.5,{"$f":"Tabelle5[[#This Row],[ 7]]*Tabelle5[[#This Row],[ 2]]","v":0}]
[79,null,"Blackboxx","Candela Romana No.1 (gold/purpur)","288g","F2",25,{"$f":"Tabelle5[[#This Row],[ 7]]*Tabelle5[[#This Row],[ 2]]","v":0}]
[{"$f":"A189+1","v":80},null,"Blackboxx","Candela Romana No.2 (rot /Crackling)","288g","F2",25,{"$f":"Tabelle5[[#This Row],[ 7]]*Tabelle5[[#This Row],[ 2]]","v":0}]
[81,null,"Blackboxx","Candela Romana No.3 (rot/blau)","288g","F2",25,{"$f":"Tabelle5[[#This Row],[ 7]]*Tabelle5[[#This Row],[ 2]]","v":0}]
[null,{"$f":"SUM(Tabelle5[[ 2]])","v":0},{"$nulls":5},{"$f":"SUM(Tabelle5[[ 8]])","v":0}]
["Fontänen und Vulkane"]
[]
["Nr.","Anzahl","Hersteller","Artikel","NEM","Kat.","Preis","Summe"]
[]
[82,null,"Zink/Bugano","Vulkan Azzuro","400g","F3",12,{"$f":"G197*B197","v":0}]
[{"$f":"A197+1","v":83},null,"Zink/Bugano","Vulkan Magic Light","400g","F3",12,0]
[{"$f":"A198+1","v":84},null,"Zink/Bugano","Vulkan Metal Pink","400g","F3",12,0]
[85,null,"Zink/Bugano","Vulkan No 1, Gold Silber","250g","F2",10,0]
[{"$f":"A200+1","v":86},null,"Zink/Bugano","Vulkan No 2, Gold & Blinksterne","250g","F2",10,0]
[{"$f":"A201+1","v":87},null,"Zink/Bugano","Vulkan No 8, Silber rote Sterne","250g","F2",10,0]
[{"$f":"A202+1","v":88},null,"Zink/Bugano","Vulkan No 9, Gold Grün","250g","F2",10,{"$f":"G203*B203","v":0}]
[{"$f":"A203+1","v":89},null,"Blackboxx","Feuersäule No.1","230g","T1",5.8,{"$f":"G204*B204","v":0}]
[null,{"$f":"SUM(B197:B204)","v":0},{"$nulls":5},{"$f":"SUM(Tabelle6[[#All],[ 2]])","v":0}]
["Böller und Knallartikel"]
[]
["Nr.","Anzahl","Hersteller","Artikel","NEM","Kat.","Preis","Summe"]
[]
[90,null,"Funke","Knallfrosch C","10g","F2",12.5,{"$f":"Tabelle7[[#This Row],[ 7]]*Tabelle7[[#This Row],[ 2]]","v":0}]
[{"$f":"A210+1","v":91},null,"Funke","Knallfrosch D","12g","F2",2,{"$f":"Tabelle7[[#This Row],[ 7]]*Tabelle7[[#This Row],[ 2]]","v":0}]
[{"$f":"A211+1","v":92},null,"Blackboxx","Knallkette Rapiator 300","45g","F2",7.5,{"$f":"Tabelle7[[#This Row],[ 7]]*Tabelle7[[#This Row],[ 2]]","v":0}]
[93,null,"Blackboxx","Knallkette Rapiator 500","75g","F2",9,{"$f":"Tabelle7[[#This Row],[ 7]]*Tabelle7[[#This Row],[ 2]]","v":0}]
[{"$nulls":7},{"$f":"SUM(Tabelle7[[ 8]])","v":0}]
["Rauch und Nebel"]
[]
["Nr.","Anzahl","Hersteller","Artikel","NEM","Kat.","Preis","Summe"]
[94,null,"Blackboxx","Rauchfackel rot, 5er Pack","80g","T1",9.5,{"$f":"G218*B218","v":0}]
[{"$f":"A218+1","v":95},null,"Blackboxx","Rauchfackel grün, 5er Pack","125g","T1",9.5,0]
[96,null,"Blackboxx","Rauchfackel blau, 5er Pack","125g","T1",9.5,0]
[97,null,"Blackboxx","Rauchfackel orange, 5er Pack","100g","T1",9.5,0]
[98,null,"Blackboxx","Rauchfackel gelb, 5er pack","97g","T1",9.5,0]
[99,null,"Blackboxx","Rauchfackel purpur, 5er Pack","90g","T1",9.5,{"$f":"G223*B223","v":0}]
[100,null,"Blackboxx","Rauchfackel weiß, 5er Pack","114g","T1",9.5,0]
[101,null,"Blackboxx","Rauchfackel schwarz, 5er Pack","110g","T1",9.5,0]
[102,null,"Blackboxx","Ultrarauchtopf rot","92g","T1",5.5,0]
[103,null,"Blackboxx","Ultrarauchtopf grün","92g","T1",5.5,0]
[104,null,"Blackboxx","Ultrarauchtopf gelb","72g","T1",5.5,0]
[105,null,"Blackboxx","Ultrarauchtopf orange","83g","T1",5.5,0]
[106,null,"Blackboxx","Ultrarauchtopf blau","111g","T1",5.5,0]
[107,null,"Blackboxx","Ultrarauchtopf purpur","93g","T1",5.5,0]
[108,null,"Blackboxx","Ultrarauchtopf schwarz","93g","T2",6.5,{"$f":"G232*B232","v":0}]
[109,null,"Blackboxx","Ultrarauchtopf weiß","75g","T1",5.5,0]
[{"$nulls":7},{"$f":"SUM(Tabelle8[[#All],[ 2]])","v":0}]
[]
["Ihre persönlichen Wünsche"]
["Weitere Artikel auf Anfrage möglich! Besuchen Sie hierzu bitte den BlackBoxx Sylvester Shop.  "]
["Nr.","Anzahl","Hersteller","Artikel","Kat.",null,"Bestellnummer"]
["S1"]
["S2"]
["S3"]
["S4"]
["S5"]
["S6"]
["S7"]
["S8"]
["S9"]
["S10"]
["S11"]
["S12"]
["S13"]
["S14"]
["S15"]
["S16"]
[null,{"$f":"SUM(B239,B252,B253,B254)","v":0}]
["Zusammenfassung"]
[null,{"$f":"SUM(B233,B218:B231)","v":0},{"$f":"Tabelle8[[#Totals],[ 2]]","v":{"$error":"#REF!"}}]
[null,{"$f":"SUM(B210:B213)","v":0},{"$f":"Tabelle7[[#Totals],[ 8]]","v":0}]
[null,{"$f":"B205","v":0},{"$f":"H205","v":0},"Gesamtsumme:",{"$f":"H234+Tabelle7[[#Totals],[ 8]]+H205+Tabelle5[[#Totals],[ 8]]+H174+Tabelle3[[#Totals],[ 8]]+H150+H45","v":0},null,"inkl. 16% MwSt."]
[null,{"$f":"Tabelle5[[#Totals],[ 2]]","v":0},{"$f":"Tabelle5[[#Totals],[ 8]]","v":0}]
[null,{"$f":"B174","v":0},{"$f":"H174","v":0}]
[null,{"$f":"Tabelle3[[#Totals],[ 2]]","v":0},{"$f":"Tabelle3[[#Totals],[ 8]]","v":0}]
[null,{"$f":"B150","v":0},{"$f":"H150","v":0}]
[null,{"$f":"B45","v":0},{"$f":"H45","v":0}]
[null,{"$f":"SUM(B257:B264)","v":0},{"$f":"SUM(C257:C264)","v":{"$error":"#REF!"}}]